bitfinex/quotes_BTCUSD_20251224
["timestamp","ask_amount","ask_price","bid_price","bid_amount"]
[1766544178383,0.01145921,87266.0,87258.0,0.11829]
[1766544178506,0.01145934,87265.0,87258.0,0.11829]
[1766544178909,0.05736767,87270.0,87250.0,0.37473084]
[1766544178910,0.01146039,87257.0,87250.0,0.37473084]
[1766544179109,0.22924796,87270.0,87251.0,0.01148]
[1766544179110,0.01146066,87255.0,87251.0,0.01148]
[1766544179811,0.01146039,87257.0,87251.0,0.01148]
[1766544180018,0.06876092,87259.0,87251.0,0.01148]
[1766544180019,0.01146013,87259.0,87251.0,0.01148]
[1766544180452,0.0687589,87262.0,87251.0,0.01148]
[1766544180647,0.01146039,87257.0,87251.0,0.01148]
[1766544180923,0.01146039,87257.0,87249.0,0.01148]
[1766544180924,0.01146092,87253.0,87249.0,0.01148]
[1766544181333,0.01146105,87252.0,87249.0,0.01148]
[1766544181708,0.01146092,87253.0,87249.0,0.01148]
[1766544182547,0.01146079,87254.0,87245.0,0.11829]
[1766544182779,0.01146105,87252.0,87248.0,0.01148]
[1766544183915,0.01146105,87252.0,87245.0,0.11829]
[1766544184125,0.01146079,87254.0,87245.0,0.11829]
[1766544184335,0.01146066,87255.0,87245.0,0.12975197]
[1766544184714,0.01146052,87256.0,87247.0,0.11829]
[1766544185565,0.01146039,87257.0,87247.0,0.12975171]
[1766544185937,0.01146066,87255.0,87247.0,0.12977]
[1766544186136,0.01146079,87254.0,87247.0,0.12977]
[1766544186368,0.01146052,87256.0,87247.0,0.12977]
[1766544186727,0.01145987,87261.0,87248.0,0.0573079]
[1766544186914,0.01146026,87258.0,87248.0,0.11829]
[1766544187171,0.01146039,87257.0,87248.0,0.12975158]
[1766544187375,0.01146013,87259.0,87248.0,0.12975158]
[1766544187548,0.01146013,87259.0,87250.0,0.01146131]
[1766544187775,0.02294,87260.0,87249.0,0.01146144]
[1766544189145,0.01148,87260.0,87252.0,0.01146105]
[1766544189679,0.01148,87260.0,87251.0,0.01146118]
[1766544190215,0.01152,87264.0,87260.0,0.001099]
[1766544190628,0.01152,87264.0,87257.0,0.12975039]
[1766544191827,0.01145921,87266.0,87257.0,0.12975039]
[1766544192087,0.01145908,87267.0,87258.0,0.11829]
[1766544192258,0.01152,87268.0,87259.0,0.01146013]
[1766544192500,0.0079548,87268.0,87262.0,0.01145974]
[1766544192734,0.00578476,87268.0,87262.0,0.01145974]
[1766544192998,0.00578476,87268.0,87264.0,0.01145947]
[1766544193212,0.00578476,87268.0,87262.0,0.01145974]
[1766544193375,0.00578476,87268.0,87261.0,0.01145987]
[1766544193376,0.00578476,87268.0,87260.0,0.12975]
[1766544193767,0.00578476,87268.0,87260.0,0.11829]
[1766544193963,0.00578476,87268.0,87261.0,0.01145987]
[1766544194164,0.01153254,87270.0,87261.0,0.01145987]
[1766544194386,7.385e-05,87270.0,87262.0,0.01145974]
[1766544194592,0.01153254,87270.0,87261.0,0.01145987]
[1766544194755,7.385e-05,87270.0,87261.0,0.11829]
[1766544195120,7.385e-05,87270.0,87263.0,0.01145961]
[1766544195322,7.385e-05,87270.0,87263.0,0.00942848]
[1766544195670,7.385e-05,87270.0,87264.0,0.01145947]
[1766544195852,7.385e-05,87270.0,87261.0,0.12974987]
[1766544196295,7.385e-05,87270.0,87262.0,0.01145974]
[1766544197929,7.385e-05,87270.0,87261.0,0.12974987]
[1766544198129,7.385e-05,87270.0,87262.0,0.01145974]
[1766544198801,7.385e-05,87270.0,87263.0,0.01145961]
[1766544199199,7.385e-05,87270.0,87262.0,0.01145974]
[1766544199622,7.385e-05,87270.0,87263.0,0.01145961]
[1766544199849,7.385e-05,87270.0,87262.0,0.01145974]
[1766544200059,7.385e-05,87270.0,87263.0,0.01145961]
[1766544200312,7.385e-05,87270.0,87261.0,0.12974987]
[1766544200658,7.385e-05,87270.0,87262.0,0.01145974]
[1766544200858,7.385e-05,87270.0,87263.0,0.01145961]
[1766544201230,7.385e-05,87270.0,87262.0,0.01145974]
[1766544201727,8.5e-07,87270.0,87266.0,0.11829]
[1766544202157,8.5e-07,87270.0,87267.0,0.01145908]
[1766544202363,8.5e-07,87270.0,87266.0,0.10720829]
[1766544202775,8.5e-07,87270.0,87267.0,0.01145908]
[1766544203095,8.5e-07,87270.0,87266.0,0.10720829]
[1766544203236,8.5e-07,87270.0,87267.0,0.01145908]
[1766544205377,7.2e-05,87267.0,87264.0,0.02293947]
[1766544205579,7.2e-05,87267.0,87264.0,0.01148]
[1766544205783,7.2e-05,87267.0,87264.0,0.02293947]
[1766544206004,8.5e-07,87270.0,87264.0,0.02293947]
[1766544206208,8.5e-07,87270.0,87265.0,0.12974934]
[1766544206677,8.5e-07,87270.0,87236.0,3.9e-06]
[1766544206678,0.01146079,87254.0,87236.0,3.9e-06]
[1766544206914,0.01148,87257.0,87236.0,3.9e-06]
[1766544207085,0.01146276,87239.0,87236.0,3.9e-06]
[1766544207286,0.05731447,87238.0,87236.0,3.9e-06]
[1766544207496,0.05731447,87238.0,87220.0,0.11829]
[1766544207497,0.01146355,87233.0,87220.0,0.11829]
[1766544207690,0.01146355,87233.0,87224.0,0.01162]
[1766544207835,0.01146434,87227.0,87224.0,0.0001]
[1766544208028,0.01146407,87229.0,87224.0,0.0001]
[1766544208323,0.01146407,87229.0,87224.0,0.00045816]
[1766544208521,0.01146434,87227.0,87220.0,0.0025728]
[1766544208652,0.0114646,87225.0,87220.0,0.0025728]
[1766544208855,0.01146447,87226.0,87220.0,0.0025728]
[1766544209064,0.0114646,87225.0,87220.0,0.0025728]
[1766544209265,0.01146447,87226.0,87220.0,0.0025728]
[1766544209646,0.0114646,87225.0,87220.0,0.0025728]
[1766544209851,0.0114642,87228.0,87225.0,0.000577]
[1766544210097,0.01152568,87228.0,87225.0,0.000577]
[1766544210271,0.01152568,87228.0,87220.0,0.0025728]
[1766544210473,0.01146434,87227.0,87220.0,0.0025728]
[1766544210678,6.148e-05,87228.0,87220.0,0.0025728]
[1766544210879,6.148e-05,87228.0,87227.0,0.000577]
[1766544211303,0.01146434,87227.0,87220.0,0.0025728]
[1766544211513,6.148e-05,87228.0,87220.0,0.0025728]
[1766544211737,0.01146447,87226.0,87221.0,0.01152]
[1766544211942,0.01146434,87227.0,87221.0,0.01152]
[1766544212306,0.05731809,87233.0,87221.0,0.01152]
[1766544212307,0.01146342,87234.0,87227.0,0.000577]
[1766544212515,0.06878382,87230.0,87227.0,0.00065]
[1766544212919,0.06878382,87230.0,87227.0,7.3e-05]
[1766544213125,0.06878382,87230.0,87227.0,0.00032454]
[1766544213539,0.06878382,87230.0,87227.0,4.54e-06]
[1766544214377,0.01146499,87222.0,87211.0,0.01152]
[1766544214572,0.01146499,87222.0,87211.0,0.01187783]
[1766544214781,0.01146499,87222.0,87219.0,0.00025157]
[1766544215003,0.0229846,87225.0,87219.0,0.00025157]
[1766544215207,0.01146499,87222.0,87219.0,0.00025157]
[1766544215605,0.01146499,87222.0,87219.0,5.7e-07]
[1766544215805,0.05732564,87221.0,87219.0,5.7e-07]
[1766544218714,0.05732564,87221.0,87203.0,0.05733741]
[1766544218715,0.01146644,87211.0,87199.0,0.01146802]
[1766544218892,0.00035806,87211.0,87199.0,0.02298802]
[1766544219544,0.00035806,87211.0,87200.0,0.01646788]
[1766544219751,0.00035806,87211.0,87200.0,0.005]
[1766544220123,0.00035806,87211.0,87205.0,0.01146723]
[1766544220327,0.000271,87205.0,87200.0,0.005]
[1766544220541,0.00035806,87211.0,87200.0,0.005]
[1766544220542,0.01146683,87208.0,87200.0,0.005]
[1766544220920,0.01146696,87207.0,87200.0,0.005]
[1766544221083,0.000271,87200.0,87194.0,0.01146867]
[1766544221310,0.000271,87200.0,87181.0,0.01147038]
[1766544221311,0.01146802,87199.0,87181.0,0.01147038]
[1766544221547,0.000271,87200.0,87182.0,0.01147025]
[1766544221896,0.000271,87200.0,87186.0,0.01146973]
[1766544221897,0.37473084,87200.0,87186.0,0.01146973]
[1766544222107,0.37473084,87200.0,87185.0,0.01146986]
[1766544222236,0.05501748,87192.0,87189.0,0.01146933]
[1766544222445,0.05473948,87192.0,87188.0,0.01146946]
[1766544222680,0.05473948,87192.0,87186.0,0.06881838]
[1766544222681,0.05473948,87192.0,87186.0,0.01146973]
[1766544222889,0.05473948,87192.0,87189.0,0.01146933]
[1766544223248,0.01152,87194.0,87185.0,0.01146986]
[1766544223249,0.000549,87189.0,87185.0,0.01146986]
[1766544223451,0.01152,87194.0,87192.0,0.05734471]
[1766544223753,0.01152,87199.0,87198.0,0.01146815]
[1766544223951,0.01152,87199.0,87191.0,0.01146907]
[1766544223952,0.01152,87199.0,87187.0,0.01146959]
[1766544224153,0.01152,87199.0,87155.0,0.45895014]
[1766544224154,0.01146828,87197.0,87180.0,0.05735198]
[1766544224377,0.05501748,87192.0,87183.0,0.01147012]
[1766544224576,0.05501748,87192.0,87180.0,0.05735198]
[1766544224782,0.05501748,87192.0,87181.0,0.01152]
[1766544225023,0.05501748,87192.0,87185.0,0.01146986]
[1766544225340,0.05501748,87192.0,87179.0,0.01152]
[1766544225341,0.000549,87185.0,87179.0,0.01152]
[1766544225545,0.01146986,87185.0,87174.0,0.01147131]
[1766544225718,0.05501748,87178.0,87174.0,0.02299131]
[1766544225864,0.01146933,87189.0,87178.0,0.00055]
[1766544226064,0.0114692,87190.0,87178.0,0.01147078]
[1766544226507,0.01146933,87189.0,87178.0,0.01147078]
[1766544226706,0.0114692,87190.0,87179.0,0.01147065]
[1766544226925,0.0114692,87190.0,87177.0,0.01147091]
[1766544226926,0.01146946,87188.0,87177.0,0.01147091]
[1766544227262,0.01182704,87190.0,87089.0,0.39080619]
[1766544227263,0.000549,87177.0,87173.0,0.01152]
[1766544227694,0.05501748,87178.0,87173.0,0.01152]
[1766544228467,0.05501748,87178.0,87174.0,0.01147131]
[1766544228703,0.05501748,87178.0,87171.0,0.05113875]
[1766544228912,0.05446748,87178.0,87172.0,0.01147157]
[1766544229644,0.05446748,87178.0,87173.0,0.01147144]
[1766544229850,0.05446748,87178.0,87177.0,0.00132082]
[1766544230053,0.05446748,87178.0,87177.0,0.00077182]
[1766544230276,0.05446748,87178.0,87170.0,0.01152]
[1766544230277,0.05446748,87178.0,87151.0,4.16e-06]
[1766544230278,0.07024218,87178.0,87151.0,4.16e-06]
[1766544230480,0.07024218,87178.0,87121.0,0.05501748]
[1766544230481,0.07024218,87178.0,87090.0,0.2]
[1766544230482,0.01147604,87138.0,87090.0,0.2]
[1766544230678,0.01147604,87138.0,87071.0,0.1101568]
[1766544230680,0.05739407,87117.0,87071.0,0.1101568]
[1766544230938,0.05739407,87117.0,87057.0,0.1101568]
[1766544230939,0.1101568,87105.0,87092.0,0.05741025]
[1766544231158,0.1101568,87105.0,87084.0,0.01156]
[1766544231159,0.00782327,87103.0,87084.0,0.01156]
[1766544231399,0.10068577,87105.0,87068.0,0.22970399]
[1766544231400,0.13777505,87085.0,87070.0,0.01148501]
[1766544231605,0.13777505,87085.0,87067.0,0.0114854]
[1766544231813,0.01156,87113.0,87085.0,0.00019182]
[1766544232102,0.03063671,87133.0,87086.0,0.01156]
[1766544232103,0.13777505,87115.0,87086.0,0.01156]
[1766544232307,0.13777505,87106.0,87090.0,0.11253]
[1766544232529,0.01148026,87106.0,87090.0,0.12401237]
[1766544232740,0.01147973,87110.0,87106.0,0.000742]
[1766544232951,0.03447178,87116.0,87091.0,0.18142334]
[1766544232952,0.05740462,87101.0,87091.0,0.11253]
[1766544233170,0.01148184,87094.0,87082.0,0.11253]
[1766544233387,0.01148184,87094.0,87073.0,0.0574228]
[1766544233388,0.01148184,87094.0,87068.0,0.01148527]
[1766544233389,0.000107,87085.0,87068.0,0.01148527]
[1766544233583,0.000107,87085.0,87075.0,0.0001]
[1766544233584,0.01148395,87078.0,87075.0,0.0001]
[1766544233738,0.01148395,87078.0,87069.0,0.01156]
[1766544233739,0.01148461,87073.0,87069.0,0.01156]
[1766544233942,0.01148461,87073.0,87067.0,0.11253]
[1766544233943,0.01148474,87072.0,87067.0,0.0829415]
[1766544234150,0.147009,87069.0,87054.0,0.12401712]
[1766544234356,0.00035724,87072.0,87069.0,0.0001]
[1766544234561,0.00035724,87072.0,87070.0,0.01156]
[1766544234784,0.34200645,87090.0,87070.0,0.01156]
[1766544234785,0.01148316,87084.0,87072.0,0.11253]
[1766544234967,0.06889542,87089.0,87072.0,0.11253]
[1766544234968,0.0114825,87089.0,87074.0,0.11253]
[1766544235165,0.05741108,87092.0,87072.0,0.00010733]
[1766544235166,0.01148079,87102.0,87088.0,0.01148263]
[1766544235412,0.05740126,87107.0,87091.0,0.01148224]
[1766544235413,0.01148026,87106.0,87091.0,0.01148224]
[1766544235613,0.01148026,87106.0,87102.0,0.0001]
[1766544235614,0.01158039,87105.0,87102.0,0.0001]
[1766544235813,0.01158039,87105.0,87089.0,0.05748]
[1766544235814,0.01148329,87083.0,87080.0,0.0116]
[1766544236015,0.01148277,87087.0,87067.0,0.11253]
[1766544236016,0.01148382,87079.0,87073.0,0.04588]
[1766544236218,0.01148382,87079.0,87061.0,0.05743046]
[1766544236219,0.01148461,87073.0,87058.0,0.01158659]
[1766544236475,0.01148369,87080.0,87072.0,0.00330724]
[1766544236673,0.01148422,87076.0,87073.0,0.0116]
[1766544236913,0.01148395,87078.0,87073.0,0.0116]
[1766544237113,0.00351562,87075.0,87073.0,0.0116]
[1766544237318,0.00351562,87075.0,87063.0,0.01148593]
[1766544237319,0.00351562,87075.0,87049.0,0.04592]
[1766544237320,0.0011,87073.0,87049.0,0.04592]
[1766544237493,0.08269446,87068.0,87060.0,0.01195724]
[1766544237704,0.08269446,87065.0,87060.0,0.01195724]
[1766544237909,0.08269446,87065.0,87061.0,0.0116]
[1766544238107,0.08269446,87065.0,87060.0,0.00035724]
[1766544238379,0.08269446,87065.0,87057.0,0.01148672]
[1766544238380,0.08269446,87065.0,87053.0,0.01148725]
[1766544238381,0.000357,87060.0,87053.0,0.01148725]
[1766544238593,0.000357,87060.0,86984.0,2.87407072]
[1766544238594,0.01148738,87052.0,87031.0,0.08269446]
[1766544238724,0.00071409,87060.0,87042.0,0.0114887]
[1766544238725,0.0635216,87051.0,87042.0,0.0114887]
[1766544239065,0.0635216,87051.0,87037.0,0.0116]
[1766544239066,0.06144463,87051.0,87045.0,0.01148831]
[1766544239267,0.06144463,87051.0,87040.0,0.01148897]
[1766544239268,0.0001,87048.0,87040.0,0.01148897]
[1766544239472,0.05771895,87051.0,87048.0,0.0001]
[1766544239647,0.00421915,87050.0,87048.0,0.0001]
[1766544239865,0.00421915,87050.0,87048.0,0.0116]
[1766544240154,0.00185973,87050.0,87047.0,0.02308804]
[1766544240358,0.00185973,87050.0,87041.0,0.01148883]
[1766544240359,0.08334501,87049.0,87041.0,0.01148883]
[1766544240699,0.08334501,87049.0,87035.0,0.01148963]
[1766544240700,0.00055,87041.0,87030.0,0.01149029]
[1766544240863,0.04,87084.0,87046.0,0.01148817]
[1766544241070,0.08730715,87047.0,87044.0,0.0116]
[1766544241418,0.08675715,87047.0,87044.0,0.02253844]
[1766544241836,0.03448646,87056.0,87049.0,0.05743826]
[1766544241994,0.03448646,87056.0,87048.0,0.01148791]
[1766544241995,0.01148606,87062.0,87051.0,0.01148751]
[1766544242211,0.0002814,87058.0,87055.0,3.32e-06]
[1766544242409,0.0002814,87058.0,87052.0,0.0116]
[1766544242612,0.0002814,87058.0,87045.0,0.01148831]
[1766544242811,0.0002814,87058.0,87029.0,0.22980759]
[1766544242812,0.08730715,87046.0,87042.0,0.0116]
[1766544243515,0.08730715,87046.0,87031.0,0.04592]
[1766544243516,0.08730715,87046.0,87032.0,0.01149002]
[1766544243737,0.08730715,87046.0,87033.0,0.01148989]
[1766544243738,0.09879532,87046.0,87033.0,0.01148989]
[1766544243990,0.09879532,87046.0,87034.0,0.02308976]
[1766544244195,0.01148844,87044.0,87035.0,0.0116]
[1766544244511,0.08730715,87046.0,87036.0,0.01148949]
[1766544245140,0.08730715,87046.0,87015.0,0.11355]
[1766544245141,0.00055,87036.0,87015.0,0.11355]
[1766544245342,0.00055,87036.0,87027.0,0.0116]
[1766544245343,0.08730715,87029.0,87027.0,0.0116]
[1766544245575,0.01149081,87026.0,87010.0,0.01149293]
[1766544245773,0.01149134,87022.0,87008.0,0.01149319]
[1766544245990,0.08730715,87029.0,87008.0,0.01149319]
[1766544245991,0.08730715,87029.0,87014.0,0.0114924]
[1766544246193,0.08730715,87029.0,87009.0,0.0116]
[1766544246194,0.08730715,87029.0,87022.0,0.00055]
[1766544246427,0.0002814,87044.0,87028.0,0.05745223]
[1766544246614,0.0002814,87044.0,87032.0,0.01149002]
[1766544246615,0.0116,87043.0,87032.0,0.01149002]
[1766544246823,0.00055,87032.0,87028.0,6.148e-05]
[1766544247053,0.01158923,87038.0,87031.0,0.01100284]
[1766544247275,0.08730715,87029.0,87028.0,1.48e-06]
[1766544247491,0.08730715,87029.0,87028.0,0.01160148]
[1766544247698,0.08675715,87029.0,87028.0,0.01160148]
[1766544247925,0.01158923,87038.0,87031.0,0.01149015]
[1766544247926,0.0001,87038.0,87031.0,0.01149015]
[1766544248117,0.08730715,87032.0,87031.0,0.01149015]
[1766544248261,0.01148804,87047.0,87032.0,0.01149002]
[1766544248452,0.09191757,87033.0,87028.0,0.01149055]
[1766544248654,0.09191757,87033.0,87029.0,0.0116]
[1766544248857,0.09191757,87033.0,87030.0,0.01149029]
[1766544250000,0.09191757,87033.0,87024.0,0.04596]
[1766544250001,0.1608462,87047.0,87006.0,0.01149346]
[1766544250002,0.01149121,87023.0,87006.0,0.01149346]
[1766544250177,0.000107,87023.0,87018.0,0.01149187]
[1766544250418,0.09191757,87017.0,87008.0,0.01149319]
[1766544250563,0.09191757,87017.0,87009.0,0.0116]
[1766544250743,0.09191757,87017.0,87010.0,0.11355]
[1766544250949,0.09191757,87017.0,87012.0,0.11355]
[1766544251158,0.01149029,87030.0,87020.0,0.11355]
[1766544251353,0.01149002,87032.0,87020.0,0.13699848]
[1766544251702,0.0001,87033.0,87026.0,0.01149081]
[1766544251703,0.09191757,87030.0,87026.0,0.01149081]
[1766544251878,0.0001,87033.0,87027.0,0.0116]
[1766544252084,0.0001,87033.0,87029.0,0.01149042]
[1766544252243,0.0001,87033.0,87020.0,0.34373686]
[1766544252244,0.01149002,87032.0,87020.0,0.00035687]
[1766544252626,0.00055,87029.0,87021.0,0.0116]
[1766544252821,0.0001,87033.0,87030.0,0.01149029]
[1766544253028,0.05743755,87052.0,87020.0,0.00035687]
[1766544253029,0.08732621,87046.0,87034.0,0.11355]
[1766544253225,0.01158791,87048.0,87034.0,0.11355]
[1766544253226,0.0001,87048.0,87038.0,0.01148923]
[1766544253514,0.0001,87048.0,87038.0,0.0116]
[1766544253750,0.01158791,87048.0,87047.0,0.0002578]
[1766544253866,0.01158791,87048.0,87047.0,8e-07]
[1766544253867,0.0001,87048.0,87047.0,8e-07]
[1766544254077,1.14814773,87105.0,87047.0,8e-07]
[1766544254078,0.0114858,87064.0,87050.0,0.12503765]
[1766544254291,0.0001,87068.0,87056.0,0.12503685]
[1766544254492,0.01148395,87078.0,87064.0,0.000257]
[1766544254692,0.02308303,87085.0,87078.0,0.000157]
[1766544254896,0.02308303,87085.0,87071.0,0.0116]
[1766544254897,0.00010751,87085.0,87071.0,0.0116]
[1766544255098,0.00010751,87085.0,87076.0,0.01148422]
[1766544255303,0.00010751,87085.0,87077.0,0.0116]
[1766544255510,0.00010751,87085.0,87078.0,0.01148395]
[1766544255784,0.00537918,87076.0,87075.0,0.01148435]
[1766544256062,5.151e-05,87085.0,87079.0,0.02308382]
[1766544256319,0.01148171,87095.0,87079.0,0.02308382]
[1766544256320,0.01148066,87103.0,87088.0,0.01148263]
[1766544256471,0.01158039,87105.0,87080.0,0.11355]
[1766544256472,0.0001,87105.0,87095.0,0.01148171]
[1766544256693,0.0001,87105.0,87097.0,0.01148145]
[1766544256895,0.0001,87105.0,87096.0,0.0116]
[1766544257100,0.0001,87105.0,87097.0,0.11355]
[1766544257300,0.0001,87105.0,87100.0,0.01148105]
[1766544257517,0.0001,87105.0,87095.0,0.05740815]
[1766544257518,0.05742176,87075.0,87059.0,0.11355]
[1766544257720,0.01148395,87078.0,87062.0,0.11355]
[1766544257918,0.01148408,87077.0,87065.0,0.11355]
[1766544258124,0.01148382,87079.0,87065.0,0.11355]
[1766544258125,0.01148395,87078.0,87065.0,0.11355]
[1766544258302,0.02308263,87088.0,87069.0,0.01148514]
[1766544258507,0.01148303,87085.0,87074.0,0.01148448]
[1766544258758,0.01148303,87085.0,87073.0,0.01148461]
[1766544258759,0.01148316,87084.0,87073.0,0.11355]
[1766544258973,0.01148277,87087.0,87073.0,0.11355]
[1766544259102,0.01148303,87085.0,87073.0,0.12503461]
[1766544259304,0.01148224,87091.0,87076.0,0.01148422]
[1766544259529,0.05740864,87096.0,87076.0,0.01148422]
[1766544259530,0.01148197,87093.0,87078.0,0.01148395]
[1766544259731,0.01148237,87090.0,87077.0,0.01164]
[1766544259895,0.0114829,87086.0,87077.0,0.01164]
[1766544260095,0.01148303,87085.0,87077.0,0.01164]
[1766544260295,0.01148303,87085.0,87077.0,0.011092]
[1766544260541,0.05741289,87089.0,87077.0,0.02257608]
[1766544260542,0.0114825,87089.0,87077.0,0.02257608]
[1766544260869,0.07809719,87085.0,87077.0,0.011092]
[1766544261210,0.07754819,87085.0,87077.0,0.124642]
[1766544261421,0.01148224,87091.0,87077.0,0.13612608]
[1766544261622,0.0114825,87089.0,87078.0,0.11355]
[1766544261826,0.01148118,87099.0,87081.0,0.11355]
[1766544262179,0.01148118,87099.0,87085.0,0.11355]
[1766544262180,0.01148197,87093.0,87085.0,0.11355]
[1766544262345,0.01148211,87092.0,87086.0,0.01164]
[1766544262551,0.01148079,87102.0,87090.0,0.01148237]
[1766544262753,0.0001,87105.0,87092.0,0.11355]
[1766544262935,0.0001,87105.0,87094.0,0.12503184]
[1766544263134,0.0001,87105.0,87101.0,0.11355]
[1766544263486,0.0001,87105.0,87102.0,0.01164]
[1766544263848,0.01147868,87118.0,87104.0,0.06888316]
[1766544264043,0.01147934,87113.0,87103.0,0.11355]
[1766544264264,0.0114796,87111.0,87103.0,0.11355]
[1766544264466,0.01147934,87113.0,87103.0,0.11355]
[1766544264666,0.0114796,87111.0,87103.0,0.11355]
[1766544264984,0.0114796,87111.0,87095.0,0.06888673]
[1766544264986,0.00020743,87116.0,87030.0,0.2]
[1766544264988,0.2296423,87092.0,87030.0,0.2]
[1766544265116,0.06888673,87109.0,87062.0,0.01164]
[1766544265117,0.0114854,87067.0,87062.0,0.01164]
[1766544265270,0.01148567,87065.0,87062.0,0.01164]
[1766544265473,0.05742575,87069.0,87062.0,0.01164]
[1766544265474,0.0408167,87141.0,87092.0,0.12503211]
[1766544265769,0.06060113,87150.0,87088.0,0.06888673]
[1766544265770,0.01147789,87124.0,87106.0,0.76744819]
[1766544265993,0.0114771,87130.0,87113.0,0.01147934]
[1766544266206,0.01164,87135.0,87121.0,0.11355]
[1766544266207,0.0114767,87133.0,87121.0,0.11355]
[1766544266421,0.0001,87126.0,87122.0,0.01168]
[1766544266568,0.00035832,87130.0,87122.0,0.12523]
[1766544266771,0.01147525,87144.0,87130.0,0.000358]
[1766544266939,0.01147525,87144.0,87123.0,0.01147802]
[1766544266940,7.98824211,87111.0,87108.0,0.10790418]
[1766544267144,7.21954942,87111.0,87109.0,0.05764]
[1766544267365,6.16621631,87111.0,87110.0,0.05739869]
[1766544267588,4.5227552,87111.0,87110.0,0.02497328]
[1766544267830,4.5227552,87111.0,87105.0,0.01148039]
[1766544267831,0.001099,87110.0,87105.0,0.01148039]
[1766544267965,4.5111355,87111.0,87107.0,0.01148013]
[1766544267966,4.50808803,87111.0,87107.0,0.01148013]
[1766544268166,4.50609576,87111.0,87107.0,0.01183845]
[1766544268371,4.50554576,87111.0,87107.0,0.00035832]
[1766544269016,4.50554576,87111.0,87108.0,0.01168]
[1766544270035,4.50554576,87111.0,87109.0,0.01168]
[1766544270392,4.50554576,87111.0,87005.0,0.10240028]
[1766544270393,0.00055,87109.0,87101.0,0.02316092]
[1766544270595,0.00055,87109.0,87085.0,0.22966012]
[1766544270596,0.22962376,87099.0,87063.0,0.03445897]
[1766544270820,0.65333422,87090.0,87074.0,0.01148448]
[1766544270995,0.01148184,87094.0,87075.0,0.01148435]
[1766544271195,0.01148184,87094.0,87073.0,0.11901]
[1766544271196,0.0114825,87089.0,87073.0,0.11901]
[1766544271399,0.01148171,87095.0,87076.0,0.01148422]
[1766544271751,0.01168,87098.0,87076.0,0.01148422]
[1766544271752,0.01148211,87092.0,87080.0,0.01168]
[1766544271961,0.01148237,87090.0,87080.0,0.01168]
[1766544272508,0.01148224,87091.0,87080.0,0.01168]
[1766544272679,0.0114825,87089.0,87080.0,0.01168]
[1766544272828,0.01148237,87090.0,87080.0,0.01168]
[1766544273225,0.0114825,87089.0,87080.0,0.01168]
[1766544273431,0.0114825,87089.0,87080.0,0.01113]
[1766544273432,0.0114829,87086.0,87080.0,0.01113]
[1766544273658,0.01148342,87082.0,87073.0,0.11901]
[1766544273829,0.88298426,87090.0,87059.0,0.11901]
[1766544273830,0.01148422,87076.0,87059.0,0.11901]
[1766544274030,0.02755928,87085.0,87052.0,0.04592]
[1766544274031,0.01138633,87060.0,87052.0,0.04592]
[1766544274236,0.01138633,87060.0,87046.0,0.01168]
[1766544274237,0.01148672,87057.0,87046.0,0.01168]
[1766544274436,0.01148659,87058.0,87050.0,0.0001]
[1766544274660,0.06892161,87056.0,87050.0,0.0001]
[1766544274955,0.01148699,87055.0,87050.0,0.0001]
[1766544275557,0.01148712,87054.0,87050.0,0.0001]
[1766544275759,0.01148725,87053.0,87050.0,0.0001]
[1766544275980,0.01148725,87053.0,87046.0,0.01168]
[1766544276144,0.06891975,87058.0,87053.0,0.00055]
[1766544276352,0.01148699,87055.0,87053.0,0.00055]
[1766544276605,0.01148699,87055.0,87046.0,0.01168]
[1766544276983,0.01148685,87056.0,87046.0,0.01168]
[1766544277187,0.05512237,87054.0,87046.0,0.01168]
[1766544277356,0.04308538,87054.0,87047.0,0.1190108]
[1766544278814,0.01487593,87054.0,87047.0,0.1190108]
[1766544278982,0.01148646,87059.0,87047.0,0.1190108]
[1766544279390,0.01148659,87058.0,87047.0,0.1190108]
[1766544279587,0.01148765,87050.0,87047.0,0.1190108]
[1766544279785,0.06892227,87055.0,87050.0,0.00055]
[1766544279990,0.01148725,87053.0,87050.0,0.00055]
[1766544280203,0.01148725,87053.0,87047.0,0.1190108]
[1766544280204,0.01148712,87054.0,87047.0,0.1190108]
[1766544280386,0.01148699,87055.0,87047.0,0.1190108]
[1766544280824,0.01159368,87060.0,87055.0,0.00055]
[1766544281069,0.01148646,87059.0,87056.0,0.01168]
[1766544281714,0.00010735,87060.0,87056.0,0.01168]
[1766544281920,0.0001,87070.0,87061.0,0.01148619]
[1766544282070,0.0001,87070.0,87062.0,0.03923928]
[1766544282275,0.22966742,87083.0,87062.0,0.03923928]
[1766544282276,0.01148277,87087.0,87071.0,0.01148488]
[1766544282476,0.0114829,87086.0,87072.0,0.25516474]
[1766544282824,0.3,87079.0,87076.0,0.232]
[1766544282975,0.0690043,87087.0,87077.0,0.04596]
[1766544283177,0.0690043,87087.0,87078.0,0.24368]
[1766544283178,0.00010743,87087.0,87078.0,0.24368]
[1766544283548,0.00065,87078.0,87075.0,0.04596]
[1766544283754,0.00065,87078.0,87062.0,0.22972132]
[1766544283755,0.00065,87078.0,87043.0,0.232]
[1766544283756,0.01148461,87073.0,87043.0,0.232]
[1766544283963,0.01148461,87073.0,87033.0,0.02755928]
[1766544283964,0.01148606,87062.0,87046.0,0.01148817]
[1766544284165,0.01148685,87056.0,87048.0,0.01168]
[1766544284366,0.01148633,87060.0,87048.0,0.01168]
[1766544284573,0.01148712,87054.0,87048.0,0.01168]
[1766544284770,0.01148659,87058.0,87048.0,0.01168]
[1766544284964,0.03216376,87057.0,87048.0,0.24368]
[1766544285218,0.01148633,87060.0,87048.0,0.24368]
[1766544285420,0.01148659,87058.0,87048.0,0.24378735]
[1766544285626,0.01148646,87059.0,87048.0,0.24378735]
[1766544285801,0.01148633,87060.0,87048.0,0.24378735]
[1766544286004,0.01148619,87061.0,87048.0,0.24378735]
[1766544286288,0.01148593,87063.0,87049.0,0.01148778]
[1766544286525,0.0115858,87064.0,87049.0,0.01148778]
[1766544286772,0.0001,87064.0,87048.0,0.25527526]
[1766544286953,0.05752911,87064.0,87049.0,0.01148778]
[1766544287153,0.0115858,87064.0,87050.0,0.01148765]
[1766544287564,0.0001,87064.0,87053.0,0.01148725]
[1766544287775,0.0001,87064.0,87054.0,0.02316712]
[1766544288185,0.0001,87064.0,87055.0,0.01148699]
[1766544288385,0.0001,87064.0,87058.0,0.01148659]
[1766544288955,0.0001,87064.0,87059.0,0.32448646]
[1766544289153,0.02755928,87076.0,87061.0,0.01148619]
[1766544289361,0.02755928,87076.0,87060.0,0.02316633]
[1766544289362,0.01148356,87081.0,87065.0,0.313]
[1766544289568,0.01148356,87081.0,87064.0,0.05742901]
[1766544289569,0.01148369,87080.0,87066.0,0.32468]
[1766544289772,0.01148382,87079.0,87066.0,0.32468]
[1766544289967,0.01148356,87081.0,87066.0,0.33616553]